bitfinex/quotes_SOLUSD_20240921
["timestamp","ask_amount","ask_price","bid_price","bid_amount"]
[1726914861448,26.94029,146.74,146.7,0.2509009]
[1726914861981,0.12549,146.73,146.7,0.2509009]
[1726914862164,0.25098,146.71,146.7,0.2509009]
[1726914862781,0.12549,146.71,146.7,0.2509009]
[1726914862971,0.25098,146.73,146.7,0.2509009]
[1726914865273,24.027864,146.73,146.7,0.2509009]
[1726914865476,20.0,146.72,146.7,0.2509009]
[1726914865666,0.25098,146.71,146.7,0.2509009]
[1726914866763,7.37049524,146.71,146.7,0.2509009]
[1726914867085,7.11951524,146.71,146.7,0.2509009]
[1726914868375,7.37049524,146.71,146.7,0.2509009]
[1726914868576,57.96347924,146.71,146.7,0.2509009]
[1726914870472,27.37049524,146.71,146.7,0.2509009]
[1726914875082,34.18659524,146.71,146.7,0.2509009]
[1726914875282,57.96347924,146.71,146.7,0.2509009]
[1726914877281,98.88347924,146.71,146.7,0.2509009]
[1726914878179,27.37049524,146.71,146.7,0.2509009]
[1726914878590,7.11951524,146.71,146.7,0.2509009]
[1726914878881,6.8146,146.75,146.7,7.0671009]
[1726914879080,7.11912061,146.73,146.7,7.0671009]
[1726914879887,0.25098,146.72,146.7,0.2509009]
[1726914880187,7.06668,146.72,146.7,0.2509009]
[1726914880365,20.0,146.71,146.7,0.2509009]
[1726914880569,20.25098,146.71,146.7,0.2509009]
[1726914889418,27.37092094,146.71,146.7,0.2509009]
[1726914892905,51.14780494,146.71,146.7,0.2509009]
[1726914894205,27.37092094,146.71,146.7,0.2509009]
[1726914896889,27.24543094,146.71,146.7,0.2509009]
[1726914898407,27.24543094,146.71,146.7,7.0675009]
[1726914899305,7.37092094,146.71,146.7,0.2509009]
[1726914899686,27.37092094,146.71,146.7,0.2509009]
[1726914900504,7.24543094,146.71,146.7,7.0675009]
[1726914901191,7.11994094,146.71,146.7,7.0675009]
[1726914901394,1.18757973,146.75,146.72,17.0388]
[1726914901591,7.11787018,146.75,146.73,6.8151]
[1726914903293,0.25098,146.74,146.72,23.8544]
[1726914904907,0.25098,146.74,146.7,7.0675009]
[1726914905115,20.25098,146.74,146.7,0.2509009]
[1726914905432,27.06608,146.74,146.7,0.2509009]
[1726914905611,20.25098,146.72,146.7,0.2509009]
[1726914905813,27.06668,146.72,146.7,0.2509009]
[1726914908428,50.843964,146.71,146.7,0.2509009]
[1726914908609,91.763964,146.71,146.7,0.2509009]
[1726914908993,20.25098,146.71,146.7,0.2509009]
[1726914911900,27.37111203,146.71,146.7,0.2509009]
[1726914915620,57.96409603,146.71,146.7,0.2509009]
[1726914918509,98.88409603,146.71,146.7,0.2509009]
[1726914930028,34.18721203,146.71,146.7,0.2509009]
[1726914931115,57.96409603,146.71,146.7,0.2509009]
[1726914938734,98.88409603,146.71,146.7,0.2509009]
[1726914940826,98.88409603,146.71,146.66,17.0458]
[1726914940827,20.25098,146.68,146.66,17.0458]
[1726914941134,20.25098,146.68,146.65,6.8188]
[1726914941521,27.37819505,146.68,146.65,6.8188]
[1726914948151,27.25270505,146.68,146.66,6.8183]
[1726914949742,27.12721505,146.68,146.67,6.818]
[1726914950245,7.12721505,146.68,146.67,6.818]
[1726914951444,7.12721505,146.68,146.66,6.8183]
[1726914954842,7.12721505,146.68,146.67,6.818]
[1726914967855,7.12721505,146.68,146.66,6.8183]
[1726914969744,7.12721505,146.68,146.64,15.8075985]
[1726914969745,20.25098,146.67,146.64,0.4153985]
[1726914970054,20.0,146.67,146.64,7.2346985]
[1726914970258,20.0,146.67,146.64,8.59834392]
[1726914971238,20.0,146.67,146.64,7.2346985]
[1726914972160,20.0,146.67,146.65,6.8188]
[1726914972363,7.12721505,146.68,146.65,8.18247506]
[1726914974033,7.12721505,146.68,146.65,6.8188]
[1726914974230,7.12721505,146.68,146.64,24.2826985]
[1726914976361,7.12721505,146.68,146.66,6.8184]
[1726914977950,7.12721505,146.68,146.65,6.8188]
[1726914978649,7.12721505,146.68,146.64,24.2826985]
[1726914980364,13.94501505,146.68,146.64,24.2826985]
[1726914980565,13.94501505,146.68,146.64,17.4633985]
[1726914980770,20.0,146.67,146.64,17.4633985]
[1726914981151,20.0,146.67,146.64,24.2823985]
[1726914985490,26.8181,146.67,146.64,0.4153985]
[1726914996899,0.12549,146.66,146.64,0.4153985]
[1726914997107,0.25098,146.66,146.64,0.4153985]
[1726914997307,7.37752257,146.66,146.64,0.4153985]
[1726915003810,7.12654257,146.66,146.64,0.4153985]
[1726915005516,7.12654257,146.66,146.64,7.2346985]
[1726915005696,7.12654257,146.66,146.65,8.18252035]
[1726915006018,16.2873,146.71,146.67,6.8178]
[1726915006197,7.12558854,146.7,146.67,6.8178]
[1726915006391,7.12558854,146.7,146.66,23.8641]
[1726915006994,20.0,146.69,146.66,23.8641]
[1726915007192,7.12558854,146.7,146.66,23.8641]
[1726915008917,20.0,146.69,146.66,23.8641]
[1726915010220,20.0,146.69,146.67,6.818]
[1726915010403,7.12558854,146.7,146.68,6.8173]
[1726915010606,7.12558854,146.7,146.69,8.18034649]
[1726915010814,40.92,146.78,146.69,8.18034649]
[1726915011110,6.8139,146.76,146.71,6.8158]
[1726915011296,7.11945535,146.75,146.72,17.0384]
[1726915011499,15.4109,146.79,146.72,23.8539]
[1726915011714,7.11852217,146.76,146.72,23.8539]
[1726915012026,15.4109,146.79,146.72,23.8539]
[1726915012516,7.12204966,146.76,146.72,23.8539]
[1726915012719,6.8134,146.77,146.73,6.8151]
[1726915012907,7.11808282,146.76,146.73,6.8151]
[1726915017132,7.11808282,146.76,146.72,17.0384]
[1726915017133,7.11808282,146.76,146.74,6.8147]
[1726915017419,26.8129,146.78,146.72,29.3855103]
[1726915017622,7.1156629,146.77,146.72,17.0384]
[1726915018226,7.1156629,146.77,146.74,6.8147]
[1726915020022,7.1156629,146.77,146.73,6.8151]
[1726915027732,7.1156629,146.77,146.74,30.74617362]
[1726915027937,1.43808478,146.81,146.77,6.8129]
[1726915028114,0.2509009,146.81,146.78,6.8126]
[1726915028631,0.2509009,146.81,146.77,6.8132]
[1726915029622,20.2509009,146.81,146.77,6.8132]
[1726915031026,20.2509009,146.81,146.78,6.8127]
[1726915031334,20.2509009,146.81,146.79,8.17471971]
[1726915031528,20.2509009,146.81,146.79,6.8124]
[1726915032215,20.2509009,146.81,146.78,6.8128]
[1726915032405,20.2509009,146.81,146.76,17.0335]
[1726915032406,20.2509009,146.81,146.77,6.8132]
[1726915035944,20.2509009,146.81,146.78,6.8127]
[1726915036356,20.2509009,146.81,146.79,6.8124]
[1726915037037,20.2509009,146.81,146.76,29.3806103]
[1726915037038,20.2509009,146.81,146.78,6.8127]
[1726915037728,27.0624009,146.81,146.76,17.0335]
[1726915037932,0.12549,146.8,146.76,23.8469]
[1726915038340,0.12549,146.8,146.77,6.8133]
[1726915039043,27.37283445,146.81,146.78,1.36249276]
[1726915039477,27.37283445,146.81,146.77,6.8133]
[1726915040964,27.37283445,146.81,146.78,1.36239965]
[1726915041762,27.37283445,146.81,146.78,6.8128]
[1726915042463,27.37283445,146.81,146.79,1.36231213]
[1726915043257,27.37283445,146.81,146.78,6.8128]
[1726915043452,27.37283445,146.81,146.79,1.36230707]
[1726915043651,7.37283445,146.81,146.79,1.36230707]
[1726915043842,7.37283445,146.81,146.8,6.8119]
[1726915044045,0.2509009,146.81,146.8,19.1590103]
[1726915045143,0.2509009,146.81,146.8,42.9358943]
[1726915046179,0.2509009,146.81,146.8,43.1868743]
[1726915046340,0.2509009,146.81,146.8,49.8420743]
[1726915046543,0.2509009,146.81,146.8,66.1283743]
[1726915048478,0.2509009,146.81,146.8,65.8773943]
[1726915048951,0.2509009,146.81,146.8,66.1283743]
[1726915049153,0.2509009,146.85,146.84,57.886]
[1726915049352,0.2509009,146.85,146.84,94.0099943]
[1726915050969,302.68085519,146.8,146.79,44.027864]
[1726915051164,197.49827588,146.8,146.79,56.3749743]
[1726915051366,189.40417588,146.8,146.79,56.3749743]
[1726915052775,149.43888739,146.8,146.79,56.3749743]
[1726915053162,147.97228739,146.8,146.79,56.3749743]
[1726915053342,147.67898739,146.8,146.79,56.3749743]
[1726915053538,147.38568739,146.8,146.79,56.3749743]
[1726915053746,87.20529567,146.8,146.79,56.3749743]
[1726915053947,87.20529567,146.8,146.79,66.1153743]
[1726915058881,87.20529567,146.8,146.79,38.9243103]
[1726915060359,87.20529567,146.8,146.79,62.9521743]
[1726915062259,87.20529567,146.8,146.79,36.3749743]
[1726915071260,11.5216095,146.8,146.79,57.73698869]
[1726915072562,11.5216095,146.8,146.79,56.3749743]
[1726915076278,11.5216095,146.8,146.79,58.40679007]
[1726915083472,0.2509009,146.85,146.8,24.027864]
[1726915083679,0.2509009,146.85,146.79,59.76694405]
[1726915083680,0.2509009,146.85,146.84,36.3749743]
[1726915083886,0.2509009,146.85,146.84,37.73437437]
[1726915085380,0.2509009,146.85,146.84,36.3749743]
[1726915087493,0.2509009,146.9,146.85,44.027864]
[1726915087801,0.2509009,146.9,146.89,12.5980903]
[1726915087990,0.2509009,146.9,146.89,37.73329533]
[1726915088179,0.2509009,146.9,146.89,0.12549]
[1726915089298,0.2509009,146.9,146.89,1.48387715]
[1726915089508,0.2509009,146.9,146.89,37.73336145]
[1726915090290,0.2509009,146.9,146.89,36.3749743]
[1726915093404,0.2509009,146.9,146.87,12.3471103]
[1726915093591,0.2509009,146.9,146.88,12.3471103]
[1726915094698,0.2509009,146.9,146.89,12.3471103]
[1726915094999,0.2509009,146.9,146.89,12.4726003]
[1726915096199,0.2509009,146.9,146.89,12.5980903]
[1726915096523,0.2509009,146.9,146.89,36.3749743]
[1726915108302,1e-08,146.9,146.89,36.3749743]
[1726915110120,1e-08,146.9,146.89,38.34164524]
[1726915111526,0.3492498,146.95,146.9,44.027864]
[1726915111711,0.3492498,146.95,146.94,59.4749743]
[1726915114704,0.3492498,146.95,146.94,79.4749743]
[1726915115630,0.3492498,146.95,146.94,80.83118729]
[1726915115931,0.3492498,146.95,146.94,79.4749743]
[1726915117529,0.3492498,146.95,146.94,56.3749743]
[1726915118834,0.3492498,146.95,146.94,36.3749743]
[1726915119201,0.3492498,146.95,146.94,56.3749743]
[1726915119640,0.3492498,146.95,146.87,2.72416]
[1726915119938,0.3492498,146.95,146.92,12.3471103]
[1726915120613,0.3492498,146.95,146.86,6.499]
[1726915120614,0.3492498,146.95,146.86,8.49151886]
[1726915120814,0.3492498,146.95,146.92,12.3471103]
[1726915121030,0.3492498,146.95,146.93,23.776884]
[1726915121344,0.3492498,146.95,146.92,12.3471103]
[1726915122537,0.3492498,146.95,146.93,23.902374]
[1726915123532,0.3492498,146.95,146.94,1.35695923]
[1726915123726,0.3492498,146.95,146.93,23.902374]
[1726915128228,0.3492498,146.95,146.91,0.12549]
[1726915128431,15.842,146.94,146.9,12.3471103]
[1726915128622,15.842,146.94,146.9,20.0]
[1726915129827,15.842,146.94,146.91,24.027864]
[1726915130524,15.842,146.94,146.91,0.25098]
[1726915132450,15.842,146.94,146.9,23.776884]
[1726915132823,15.842,146.94,146.91,0.25098]
[1726915137770,15.842,146.94,146.88,12.3471103]
[1726915138055,6.3653,146.93,146.79,6.2193]
[1726915138243,6.3653,146.93,146.85,12.3471103]
[1726915138244,16.5005,146.92,146.85,12.3471103]
[1726915139761,16.5005,146.92,146.86,24.027864]
[1726915140351,16.5005,146.92,146.86,36.3749743]
[1726915140555,16.5005,146.92,146.89,36.3749743]
[1726915140745,16.5005,146.92,146.9,1.3584383]
[1726915144474,16.5005,146.92,146.9,1.35845897]
[1726915145566,16.5005,146.92,146.89,36.3749743]
[1726915146280,16.5005,146.92,146.89,24.027864]
[1726915146745,16.5005,146.92,146.89,0.25098]
[1726915158270,16.5005,146.92,146.9,1.35854018]
[1726915159955,16.5005,146.92,146.9,13.70565048]
[1726915160584,16.5005,146.92,146.9,12.3471103]
[1726915161684,16.5005,146.92,146.89,12.5980903]
[1726915161877,16.5005,146.92,146.89,0.25098]
[1726915163688,22.7187,146.92,146.84,2.03493069]
[1726915163991,22.7187,146.92,146.85,12.3471103]
[1726915164978,22.6687,146.92,146.85,12.3471103]
[1726915165174,22.6687,146.92,146.86,24.027864]
[1726915167080,22.6687,146.92,146.88,23.902374]
[1726915167979,22.6687,146.92,146.88,36.2494843]
[1726915168190,22.6687,146.92,146.89,1.35853799]
[1726915169114,22.6687,146.92,146.88,36.2494843]
[1726915170314,22.6687,146.92,146.89,1.35855252]
[1726915171006,22.6687,146.92,146.89,13.70566282]
[1726915172606,16.4505,146.92,146.89,13.70566282]
[1726915173314,16.4505,146.92,146.89,12.3471103]
[1726915176116,16.4505,146.92,146.9,24.027864]
[1726915177913,16.4505,146.92,146.91,1.35828164]
[1726915178590,16.4505,146.92,146.9,36.3749743]
[1726915178821,16.4505,146.92,146.9,24.027864]
[1726915181223,16.4505,146.92,146.89,12.3471103]
[1726915181224,16.4505,146.92,146.88,12.3471103]
[1726915181522,16.4505,146.92,146.89,23.902374]
[1726915188309,16.4505,146.92,146.9,12.4726003]
[1726915188531,16.4505,146.92,146.9,13.83104316]
[1726915200227,16.4505,146.92,146.91,23.902374]
[1726915200534,15.8156498,146.95,146.92,23.902374]
[1726915200824,15.8156498,146.95,146.93,1.35775803]
[1726915201409,15.8156498,146.95,146.93,13.70486833]
[1726915201609,0.3492498,146.95,146.94,13.95556469]
[1726915201851,0.3492498,146.95,146.94,37.73244869]
[1726915202211,0.3492498,146.95,146.94,36.3749743]
[1726915203443,0.2509009,146.98,146.96,0.12549]
[1726915203619,0.2509009,146.98,146.97,37.73082742]
[1726915204028,0.2509009,146.98,146.97,36.3749743]
[1726915209549,0.2509009,146.98,146.97,38.42225354]
[1726915210246,15.4664,147.03,146.97,38.42225354]
[1726915210247,15.4664,147.03,146.98,44.027864]
[1726915210445,15.4664,147.03,147.02,36.3749743]
[1726915210651,15.4664,147.03,147.02,37.7300936]
[1726915212537,15.4664,147.03,147.02,36.3749743]
[1726915214546,15.4664,147.03,146.97,2.04727924]
[1726915214753,15.4664,147.03,147.0,12.3471103]
[1726915215452,15.4664,147.03,146.94,20.0]
[1726915215757,15.4664,147.03,146.93,2.02804562]
[1726915215758,6.484,147.02,146.93,2.02804562]
[1726915215948,6.484,147.02,146.95,12.3471103]
[1726915217562,17.16699584,147.01,146.89,1.98795818]
[1726915217733,17.16699584,147.01,146.91,12.3471103]
[1726915218143,23.96929584,147.01,146.91,12.3471103]
[1726915218336,15.4664,147.01,146.92,12.3471103]
[1726915218539,15.4664,147.01,146.94,12.3471103]
[1726915218757,15.4664,147.01,146.95,1.35680623]
[1726915220751,22.2687,147.01,146.95,23.902374]
[1726915221063,15.4664,147.01,146.95,23.902374]
[1726915228664,15.4664,147.01,146.96,0.12549]
[1726915229058,15.4664,147.01,146.96,13.8291303]
[1726915229263,15.4664,147.01,146.97,23.902374]
[1726915229443,15.4664,147.01,146.98,1.35635338]
[1726915229767,15.4664,147.01,146.98,13.70346368]
[1726915231175,15.4664,147.01,146.99,24.027864]
[1726915231350,15.4664,147.01,147.0,1.35595952]
[1726915231679,15.4664,147.01,146.99,24.027864]
[1726915233170,15.4664,147.01,146.99,36.3749743]
[1726915233876,15.4664,147.01,147.0,25.38379637]
[1726915234255,15.4664,147.01,147.0,24.027864]
[1726915235549,15.4664,147.01,146.92,2.04536454]
[1726915235869,15.4664,147.01,146.98,36.3749743]
[1726915240669,15.4664,147.01,146.99,12.3471103]
[1726915240972,15.4664,147.01,147.0,0.12549]
[1726915244575,15.4664,147.01,146.99,0.12549]
[1726915249986,15.4664,147.01,147.0,23.776884]
[1726915250295,15.4664,147.01,147.0,24.027864]
[1726915251600,15.4664,147.01,146.98,12.3471103]
[1726915251895,15.4664,147.01,146.99,24.027864]
[1726915252691,15.4664,147.01,146.98,23.776884]
[1726915260577,15.4664,147.01,146.97,0.12549]
[1726915260774,15.4664,147.01,146.96,24.027864]
[1726915262111,6.0602,147.0,146.95,24.027864]
[1726915262297,6.0602,147.0,146.94,12.3471103]
[1726915263418,16.1666,146.99,146.92,12.3471103]
[1726915264189,16.1666,146.99,146.93,12.3471103]
[1726915264790,16.1666,146.99,146.94,12.3471103]
[1726915264996,16.1666,146.99,146.95,13.70423894]
[1726915265888,16.1666,146.99,146.95,12.3471103]
[1726915273920,16.1666,146.99,146.96,24.027864]
[1726915274100,16.1666,146.99,146.97,1.35685018]
[1726915274606,16.1666,146.99,146.97,13.70396048]
[1726915275121,16.1666,146.99,146.98,0.12549]
[1726915276315,16.1666,146.99,146.98,36.2494843]
[1726915276506,16.1666,147.03,146.99,0.12549]
[1726915276705,16.1666,147.03,146.99,1.48151344]
[1726915282211,16.1666,147.03,146.99,0.12549]
[1726915283831,16.1666,147.03,146.98,23.902374]
[1726915289110,17.86709566,147.03,146.95,12.3471103]
[1726915289535,16.1666,147.03,146.95,12.3471103]
[1726915290524,16.1666,147.03,146.96,0.12549]
[1726915290939,16.1666,147.03,146.96,24.027864]
[1726915291434,16.1666,147.03,146.96,36.3749743]
[1726915291644,16.1666,147.03,146.97,1.35679401]
[1726915293547,16.1666,147.03,146.97,13.70390431]
[1726915293722,16.1666,147.03,146.98,36.3749743]
[1726915294035,16.1666,147.03,147.0,36.2494843]
[1726915294225,16.1666,147.03,147.01,1.35589527]
[1726915297645,0.4153985,147.04,147.01,13.70300557]
[1726915297824,0.4153985,147.04,147.02,36.3749743]
[1726915298025,0.4153985,147.04,147.03,1.35518761]
[1726915299131,0.4153985,147.04,147.02,24.027864]
[1726915299537,0.4153985,147.04,147.01,24.027864]
[1726915302050,0.4153985,147.04,147.0,23.776884]
[1726915307850,0.4153985,147.04,147.02,36.2494843]
[1726915308425,0.4153985,147.04,147.03,12.3471103]
[1726915310760,0.4153985,147.04,147.02,36.2494843]
[1726915311443,0.4153985,147.04,147.03,0.12549]
[1726915315156,0.4153985,147.04,147.02,23.902374]
[1726915315564,0.4153985,147.04,147.02,0.12549]
[1726915315951,0.4153985,147.04,147.02,0.25098]
[1726915316343,0.4153985,147.04,147.01,0.25098]
[1726915316547,0.4153985,147.04,146.99,23.902374]
[1726915316740,0.4153985,147.04,147.0,0.12549]
[1726915321468,0.4153985,147.04,146.99,23.902374]
[1726915323666,16.2485,147.03,146.95,0.12549]
[1726915323871,22.9131,147.03,146.97,0.12549]
[1726915324056,22.9131,147.03,146.95,12.4726003]
[1726915324057,22.9131,147.03,146.96,23.902374]
[1726915325285,22.9131,147.03,146.97,0.12549]
[1726915329694,22.9131,147.03,146.89,3.2132]
[1726915329893,16.2485,147.02,146.93,12.3471103]
[1726915330197,1.70090338,147.01,146.93,12.3471103]
[1726915330382,1.70090338,147.01,146.91,8.59341325]
[1726915330582,1.70090338,147.01,146.93,12.3471103]
[1726915330976,1.70090338,147.01,146.94,24.027864]
[1726915331481,16.2485,147.02,146.94,24.027864]
[1726915337400,15.5366,147.0,146.91,1.97651325]
[1726915337577,1.70112849,146.99,146.87,20.2509009]
[1726915337989,1.70112849,146.99,146.91,12.3471103]
[1726915338695,1.70112849,146.99,146.92,24.027864]
[1726915339686,15.5366,147.0,146.92,24.027864]
[1726915339899,15.5366,147.0,146.92,36.3749743]
[1726915340099,15.5366,147.0,146.94,23.902374]
[1726915340304,15.5366,147.0,146.95,1.35762008]
[1726915342003,15.5366,147.0,146.95,23.776884]
[1726915343579,15.5366,147.0,146.96,1.48273196]
[1726915344309,15.5366,147.0,146.96,0.12549]
[1726915349588,15.5366,147.0,146.96,1.48270682]
[1726915350011,15.5366,147.0,146.98,0.12549]
[1726915350315,15.5366,147.0,146.98,1.48222117]
[1726915351624,15.5366,147.0,146.99,23.902374]
[1726915351814,15.5366,147.0,146.99,0.12549]
[1726915352193,15.5366,147.0,146.97,36.2494843]
[1726915352194,15.5366,147.0,146.98,0.12549]
[1726915353614,15.5366,147.0,146.92,2.05233126]
[1726915353819,15.5366,147.0,146.94,12.3471103]
[1726915354003,15.5366,147.0,146.93,12.3471103]
[1726915355299,15.5366,147.0,146.94,0.25098]
[1726915356003,15.5366,147.0,146.94,24.027864]
[1726915356820,15.5366,147.0,146.94,36.3749743]
[1726915357622,15.5366,147.0,146.96,23.902374]
[1726915369414,15.5366,147.0,146.96,0.25098]
[1726915369618,1.70080512,146.99,146.96,0.12549]
[1726915370344,8.01610512,146.99,146.86,16.65633923]
[1726915370514,8.01610512,146.99,146.9,12.3471103]
[1726915370515,17.00643296,146.98,146.9,12.3471103]
[1726915371319,15.3052,146.98,146.9,12.3471103]
[1726915371516,15.3052,146.98,146.91,12.3471103]
[1726915372244,15.3052,146.98,146.87,0.2509009]
[1726915372245,15.3052,146.98,146.87,20.2509009]
[1726915372442,15.3052,146.98,146.92,24.027864]
[1726915376747,15.3052,146.98,146.92,0.25098]
[1726915377125,15.3052,146.98,146.93,23.776884]
[1726915379351,15.3052,146.98,146.93,25.13509498]
[1726915381939,15.3052,146.98,146.95,23.776884]
[1726915382131,15.3052,146.98,146.97,23.902374]
[1726915382338,15.3052,146.98,146.97,36.2494843]
[1726915387357,15.3052,146.98,146.97,23.902374]
[1726915395346,15.3052,146.98,146.94,0.12549]
[1726915395552,15.3052,146.98,146.95,0.12549]
[1726915411574,1.70107535,146.97,146.94,23.902374]
[1726915411774,1.70107535,146.97,146.91,12.3471103]
[1726915413105,1.70107535,146.97,146.93,0.25098]
[1726915413897,21.9177,146.98,146.93,0.25098]
[1726915414395,21.9177,146.98,146.94,36.1239943]
[1726915414574,21.9177,146.98,146.94,12.3471103]
[1726915417489,21.9177,146.98,146.95,25.38576356]
[1726915417698,21.9177,146.98,146.95,37.73287386]
[1726915417875,21.9177,146.98,146.95,36.3749743]
[1726915418194,15.3052,146.98,146.95,36.3749743]
[1726915418891,15.3052,146.98,146.96,13.70470243]
[1726915419591,23.1671,147.01,146.97,36.3749743]
[1726915420977,23.1671,147.01,146.98,1.35709337]
[1726915422286,16.5546,147.01,146.99,23.902374]
[1726915422493,16.5546,147.01,146.99,37.60633673]
[1726915422686,16.5546,147.01,146.99,36.2494843]
[1726915424569,16.5546,147.01,147.0,36.3749743]
[1726915424768,0.4153985,147.04,147.01,23.902374]
[1726915425598,0.4153985,147.04,147.0,24.027864]
[1726915427192,0.4153985,147.04,147.01,13.70331429]
[1726915428404,0.4153985,147.04,147.0,36.3749743]
[1726915428720,2.1157612,147.04,147.0,23.902374]
[1726915428902,2.1157612,147.04,146.98,24.027864]
[1726915429409,0.4153985,147.04,146.99,12.3471103]
[1726915429597,0.4153985,147.04,147.0,23.902374]
[1726915430012,0.39022791,147.04,147.0,25.25862171]
[1726915430212,0.39022791,147.04,147.0,37.60573201]
[1726915432313,0.39022791,147.04,147.0,36.2494843]
[1726915433612,0.39022791,147.04,147.01,1.35608781]
[1726915434886,0.39022791,147.04,147.0,36.2494843]
[1726915435313,0.39022791,147.04,147.01,1.35604224]
[1726915435828,0.39022791,147.04,147.0,36.2494843]
[1726915437224,0.39022791,147.04,147.01,1.3560191]
[1726915438523,0.39022791,147.04,147.01,0.12549]
[1726915438819,0.39022791,147.04,147.0,23.902374]
[1726915438820,2.09056572,147.04,147.0,23.902374]
[1726915439006,2.09056572,147.04,147.0,0.12549]
[1726915441525,0.39022791,147.04,147.0,0.12549]
[1726915445012,2.09062006,147.04,147.0,0.12549]
[1726915445999,2.09062006,147.04,146.99,23.902374]
[1726915446199,2.09062006,147.04,146.99,23.776884]
[1726915447533,15.896,147.03,146.92,6.1605]
[1726915447745,2.09062006,147.04,146.94,12.3471103]
[1726915447746,22.0641,147.01,146.94,12.3471103]
[1726915448029,1.70090924,147.0,146.94,12.3471103]
[1726915449004,1.70090924,147.0,146.95,24.027864]
[1726915449818,1.70090924,147.0,146.95,36.3749743]
[1726915450018,22.0641,147.01,146.95,36.3749743]
[1726915452020,1.70087788,147.0,146.95,36.3749743]
[1726915452642,22.0641,147.01,146.95,36.3749743]
[1726915458833,22.0641,147.01,146.97,0.12549]
[1726915459034,22.0641,147.01,146.97,12.4726003]
[1726915461433,22.0641,147.01,146.96,12.4726003]
[1726915461639,22.0641,147.01,146.97,23.902374]
[1726915461820,1.70086019,147.0,146.97,23.776884]
[1726915466057,1.70086019,147.0,146.96,23.902374]
[1726915469346,22.0641,147.01,146.96,0.12549]
[1726915470641,22.0641,147.01,146.97,23.776884]
[1726915477957,22.0641,147.01,146.96,23.902374]
[1726915478156,1.70087329,147.0,146.96,23.902374]
[1726915478543,1.70087329,147.0,146.95,24.027864]
[1726915481054,22.0641,147.01,146.95,36.3749743]
[1726915482842,22.0641,147.01,146.96,12.3471103]
[1726915483043,22.0641,147.01,146.97,23.776884]
[1726915485562,22.0641,147.01,146.96,23.776884]
[1726915496374,1.7008727,147.0,146.9,2.0140016]
[1726915496560,1.7008727,147.0,146.92,12.3471103]
[1726915497073,15.5534,146.99,146.92,12.3471103]
[1726915497263,1.70108374,146.98,146.92,12.3471103]
[1726915499069,21.6419,146.97,146.88,21.98629409]
[1726915499267,21.6419,146.97,146.9,12.3471103]
[1726915500386,21.6419,146.97,146.91,24.027864]
[1726915500676,21.6419,146.97,146.93,12.3471103]
[1726915500874,21.6419,146.97,146.94,13.70500062]
[1726915501077,15.5534,146.97,146.95,36.3749743]
[1726915501750,15.5534,146.97,146.95,24.027864]
[1726915502947,21.8608,147.01,146.96,13.70468207]
[1726915503273,21.8608,147.01,146.97,36.3749743]
[1726915507054,21.8608,147.01,146.98,13.70422447]
[1726915507261,15.6804,147.01,146.99,36.1239943]
[1726915507482,0.39022792,147.04,147.0,37.73163307]
[1726915507759,0.39022792,147.04,147.03,12.3471103]
[1726915508059,0.39022792,147.04,147.03,37.73035609]
[1726915510872,0.39022792,147.04,147.03,36.3749743]
[1726915521907,0.2509009,147.07,147.04,24.027864]
[1726915522076,0.2509009,147.07,147.06,12.4726003]
[1726915522405,0.2509009,147.07,147.06,36.3749743]
[1726915528894,0.2509009,147.07,147.06,37.72871854]
[1726915530394,0.2509009,147.07,146.98,20.0]
[1726915530589,0.2509009,147.07,147.04,12.3471103]
[1726915530788,0.2509009,147.07,146.97,11.80752048]
[1726915531093,0.2509009,147.07,147.04,12.3471103]
[1726915531705,0.2509009,147.07,146.97,11.80752048]
[1726915532126,0.2509009,147.07,147.03,12.3471103]
[1726915533404,0.2509009,147.07,147.04,24.027864]
[1726915536501,0.2509009,147.07,147.04,25.38293307]
[1726915538311,0.2509009,147.07,147.05,1.35507276]
[1726915539414,0.2509009,147.07,147.04,36.3749743]
[1726915552163,0.2509009,147.07,147.05,1.35500778]
[1726915552550,0.2509009,147.07,147.04,36.3749743]
[1726915552849,0.2509009,147.07,147.05,1.35483011]
[1726915553046,0.2509009,147.07,147.04,36.3749743]
[1726915557049,1.95092427,147.07,147.04,23.776884]
[1726915560272,0.2509009,147.07,147.03,23.776884]
[1726915561277,1.9509256,147.07,147.03,23.776884]
[1726915561779,0.2509009,147.07,147.03,23.776884]
[1726915563379,0.2509009,147.07,147.03,12.3471103]